Workbook

Sheet Sheet1
A1: 兰考县仪封乡卫生院病人费用清单
A2: 姓名：曹越 年龄：26岁 病历号：1901375 床号：023
A3: 科别：妇科 打印日期：2024-01-14 15:46:28
A4: 项目代码 | B4: 项目名称 | C4: 规格 | D4: 数量 | E4: 单价（元） | F4: 应收金额（元） | G4: 实收（元）
A5: 250203020-2 | B5: 血常规 | C5: 次 | D5: 1 | E5: 24.00 | F5: =D5*E5 -> 24.00 | G5: =F5 -> 24.00
A6: 250203035-2 | B6: 凝血四项 | C6: 次 | D6: 1 | E6: 68.00 | F6: 68.00 | G6: =F6 -> 68.00
A7: 250301001-2 | B7: 白带常规 | C7: 次 | D7: 1 | E7: 14.00 | F7: 14.00 | G7: 14.00
A8: 250301002-2 | B8: BV | C8: 次 | D8: 1 | E8: 38.00 | F8: 38.00 | G8: 38.00
A9: 250302001-2 | B9: 尿常规 | C9: 次 | D9: 1 | E9: 26.00 | F9: 26.00 | G9: 26.00
A10: 250307002-2 | B10: 尿HCG | C10: 次 | D10: 1 | E10: 26.00 | F10: 26.00 | G10: 26.00
A11: 250203020-2 | B11: 血浆凝血酶原时间测定 | C11: 次 | D11: 1 | E11: 46.00 | F11: 46.00 | G11: 46.00
A12: 250307028 | B12: 血清胱抑素测定 | C12: 次 | D12: 1 | E12: 88.00 | F12: 88.00 | G12: 88.00
A13: 250310001-2 | B13: 血清促甲状腺激素测定 | C13: 次 | D13: 1 | E13: 95.00 | F13: 95.00 | G13: 95.00
A14: 250310033-2 | B14: 17a羟孕铜测定 | C14: 次 | D14: 1 | E14: 57.00 | F14: 57.00 | G14: 57.00
A15: 250307005 | B15: 阴式B超 | C15: 次 | D15: 1 | E15: 185.00 | F15: 185.00 | G15: 185.00
A16: 45900041 | B16: 阴道镜 | C16: 次 | D16: 1 | E16: 288.00 | F16: 288.00 | G16: 288.00
A17: 47400021 | B17: 心电图 | C17: 次 | D17: 1 | E17: 39.00 | F17: 39.00 | G17: 39.00
A18: 44200013 | B18: 妇科检查 | C18: 次 | D18: 1 | E18: 68.00 | F18: 68.00 | G18: 68.00
A19: 44700061 | B19: 检查手套 | C19: 双 | D19: 1 | E19: 1.50 | F19: 1.50 | G19: 1.50
A20: 44700064 | B20: 中单 | C20: 块 | D20: 1 | E20: 2.50 | F20: 2.50 | G20: 2.50
A21: 44800011 | B21: 扩阴器 | C21: 个 | D21: 1 | E21: 3.00 | F21: 3.00 | G21: 3.00
A22: 44800021 | B22: 静脉采血 | C22: 次 | D22: 1 | E22: 5.00 | F22: 5.00 | G22: 5.00
A23: 20400011 | B23: 真空采血管 | C23: 次 | D23: 1 | E23: 1.00 | F23: 1.00 | G23: 1.00
A24: 22600021 | B24: 静脉输液 | C24: 次 | D24: 1 | E24: 5.00 | F24: 5.00 | G24: 5.00
A25: 23600022 | B25: 静脉麻醉+基础麻醉 | C25: 次 | D25: 1 | E25: 680.00 | F25: 680.00 | G25: 680.00
A26: 31500051 | B26: 麻醉中监测 | C26: 次 | D26: 1 | E26: 20.50 | F26: 20.50 | G26: 20.50
A27: 250307028 | B27: 吸氧 | C27: 小时 | D27: 1 | E27: 9.00 | F27: 9.00 | G27: 9.00
A28: 250310001-2 | B28: 吸氧管 | C28: 根 | D28: 1 | E28: 4.50 | F28: 4.50 | G28: 4.50
A29: 250310033-2 | B29: 可视无痛人流手术费 | C29: 次 | D29: 1 | E29: 2860.00 | F29: 2860.00 | G29: 2860.00
A30: 250700015-2 | B30: 可视B超引导费 | C30: 次 | D30: 1 | E30: 60.00 | F30: 60.00 | G30: 60.00
A31: 450000008 | B31: 手术室材料费 | C31: 瓶 | D31: 1 | E31: 420.00 | F31: 420.00 | G31: 420.00
A32: 330100003 | B32: 缩宫素 | C32: 支 | D32: 2 | E32: 8.42 | F32: 16.84 | G32: 16.84
A33: 330100003*3 | B33: 替硝唑 | C33: 瓶 | D33: 2 | E33: 8.60 | F33: 17.20 | G33: 17.20
A34: 330100010 | B34: 左氧 | C34: 瓶 | D34: 2 | E34: 22.60 | F34: 45.20 | G34: 45.20
A35: 330100015*2 | B35: 术后保宫治疗 | C35: 小时 | D35: 5 | E35: 68.00 | F35: 340.00 | G35: 340.00
A36: 331400015 | B36: 新生化颗粒 | C36: 盒 | D36: 4 | E36: 38.90 | F36: 155.60 | G36: 155.60
A37: 120300001*1 | B37: 头孢拉啶胶囊 | C37: 盒 | D37: 3 | E37: 29.50 | F37: 88.50 | G37: 88.50
A38: 250302001-2 | B38: 当归红枣颗粒 | C38: 盒 | D38: 4 | E38: 62.50 | F38: 250.00 | G38: 250.00
A39: 250307002-2 | B39: 屈螺酮炔雌醇片 | C39: 盒 | D39: 2 | E39: 76.90 | F39: 153.80 | G39: 153.80
A40: 45900041 | B40: 维生素C注射液 | C40: 瓶 | D40: 2 | E40: 46.50 | F40: 93.00 | G40: 93.00
A41: 47400021 | B41: 盐酸吗啡注射液 | C41: 瓶 | D41: 3 | E41: 32.50 | F41: 97.50 | G41: 97.50
A42: 44200013 | B42: 聚维酮溶液 (1%)(50ml) | C42: 瓶 | D42: 1 | E42: 26.00 | F42: 26.00 | G42: 26.00
A43: 44700061 | B43: 氯化钠注射液:0.9%(10ml:90mg) | C43: 瓶 | D43: 5 | E43: 8.60 | F43: 43.00 | G43: 43.00
A44: 44700064 | B44: 氯化钠注射液:0.9%(250ml:2.25mg) | C44: 瓶 | D44: 4 | E44: 5.04 | F44: 20.16 | G44: 20.16
A45: 120300001-1 | B45: 术后B超复查 | C45: 次 | D45: 1 | E45: 88.00 | F45: 88.00 | G45: 88.00
A46: 120325001 | B46: 住院费 | C46: 天 | D46: 2 | E46: 60.00 | F46: 120.00 | G46: 120.00
A47: 120411001 | B47: 诊查费 | C47: 天 | D47: 2 | E47: 45.00 | F47: 90.00 | G47: 90.00
A48: 合计 | F48: =SUM(F5:F47) -> 6778.80 | G48: =SUM(G5:G47) -> 6778.80

Sheet Sheet2
A1: 金沙县中医院住院病人费用清单
A2: 姓名：任端 年龄：18岁 病历号：0019261 床号：028
A3: 科别：产科 费用区间：2018.01.25-2018.02.01 打印日期：2018-02-01 10:52:28
A4: 项目代码 | B4: 项目名称 | C4: 规格 | D4: 数量 | E4: 单价（元） | F4: 应收金额（元） | G4: 实收（元） | I4: 住院费 | J4: =G5 -> 420
A5: 250203190-1 | B5: 床位费 | C5: 日 | D5: 7 | E5: 60.00 | F5: =D5*E5 -> 420.00 | G5: =D5*E5 -> 420.00 | I5: 检查费 | J5: =G16+G17+G18+G19+G51 -> 1174
A6: 250203020-2 | B6: 血常规 | C6: 次 | D6: 3 | E6: 36.00 | F6: =D6*E6 -> 108.00 | G6: =D6*E6 -> 108.00 | I6: 化验费 | J6: =G6+G7+G8+G9+G10+G11+G12+G13+G14+G15 -> 941
A7: 250203035-2 | B7: 凝血四项 | C7: 次 | D7: 3 | E7: 68.00 | F7: 204.00 | G7: 204.00 | I7: 手术费 | J7: =G32+G33 -> 2740
A8: 250301001-2 | B8: 白带常规 | C8: 次 | D8: 3 | E8: 36.00 | F8: 108.00 | G8: 108.00 | I8: 材料费 | J8: =G20+G21+G22+G24+G31+G34 -> 468.66
A9: 250301002-2 | B9: BV | C9: 次 | D9: 1 | E9: 45.00 | F9: 45.00 | G9: 45.00 | I9: 药费 | J9: =G36+G38+G39+G40+G42+G43+G44+G45+G46+G47+G48+G49+G50 -> 4127.94
A10: 250302001-2 | B10: 尿常规 | C10: 次 | D10: 2 | E10: 36.00 | F10: 72.00 | G10: 72.00 | I10: 治疗费 | J10: =G23+G25+G30+G35+G37+G41+1178.4 -> 4348.4
A11: 250307002-2 | B11: 尿HCG | C11: 次 | D11: 2 | E11: 36.00 | F11: 72.00 | G11: 72.00 | I11: 麻醉费 | J11: =G26 -> 960
A12: 250203020-2 | B12: 血浆凝血酶原时间测定 | C12: 次 | D12: 1 | E12: 66.00 | F12: 66.00 | G12: 66.00 | J12: =SUM(J4:J11) -> 15180
A13: 250307028 | B13: 血清胱抑素测定 | C13: 次 | D13: 1 | E13: 102.00 | F13: 102.00 | G13: 102.00
A14: 250310001-2 | B14: 血清促甲状腺激素测定 | C14: 次 | D14: 1 | E14: 95.00 | F14: 95.00 | G14: 95.00
A15: 250310033-2 | B15: 17a羟孕铜测定 | C15: 次 | D15: 1 | E15: 69.00 | F15: 69.00 | G15: 69.00
A16: 250307005 | B16: 阴式B超 | C16: 次 | D16: 2 | E16: 185.00 | F16: 370.00 | G16: 370.00
A17: 45900041 | B17: 阴道镜 | C17: 次 | D17: 1 | E17: 326.00 | F17: 326.00 | G17: 326.00
A18: 47400021 | B18: 心电图 | C18: 次 | D18: 3 | E18: 46.00 | F18: 138.00 | G18: 138.00
A19: 44200013 | B19: 妇科检查 | C19: 次 | D19: 2 | E19: 82.00 | F19: 164.00 | G19: 164.00
A20: 44700061 | B20: 检查手套 | C20: 双 | D20: 5 | E20: 2.40 | F20: 12.00 | G20: 12.00
A21: 44700064 | B21: 中单 | C21: 块 | D21: 2 | E21: 3.60 | F21: 7.20 | G21: 7.20
A22: 44800011 | B22: 扩阴器 | C22: 个 | D22: 3 | E22: 5.00 | F22: 15.00 | G22: 15.00
A23: 44800021 | B23: 静脉采血 | C23: 次 | D23: 5 | E23: 5.00 | F23: 25.00 | G23: 25.00
A24: 20400011 | B24: 真空采血管 | C24: 次 | D24: 10 | E24: 1.00 | F24: 10.00 | G24: 10.00
A25: 22600021 | B25: 静脉输液 | C25: 次 | D25: 7 | E25: 5.00 | F25: 35.00 | G25: 35.00
A26: 23600022 | B26: 静脉麻醉+基础麻醉 | C26: 次 | D26: 1 | E26: 960.00 | F26: 960.00 | G26: 960.00
A27: 450620011 | B27: HCG监测 | C27: 项 | D27: 4 | E27: 68.00 | F27: 272.00 | G27: 272.00
A28: 450620012 | B28: 黄体酮监测 | C28: 小时 | D28: 8 | E28: 75.80 | F28: 606.40 | G28: 606.40
A29: 31500051 | B29: 麻醉中监测 | C29: 小时 | D29: 10 | E29: 30.00 | F29: 300.00 | G29: 300.00
A30: 250307028 | B30: 吸氧 | C30: 小时 | D30: 10 | E30: 15.00 | F30: 150.00 | G30: 150.00
A31: 250310001-2 | B31: 吸氧管 | C31: 根 | D31: 1 | E31: 4.46 | F31: 4.46 | G31: 4.46
A32: 250310033-2 | B32: 可视无痛人流手术费 | C32: 次 | D32: 1 | E32: 2680.00 | F32: 2680.00 | G32: 2680.00
A33: 250700015-2 | B33: 可视B超引导费 | C33: 次 | D33: 1 | E33: 60.00 | F33: 60.00 | G33: 60.00
A34: 450000008 | B34: 手术室材料费 | C34: 项 | D34: 1 | E34: 420.00 | F34: 420.00 | G34: 420.00
A35: 330100015*2 | B35: 低气腹压治疗费 | C35: 项 | D35: 1 | E35: 968.00 | F35: 968.00 | G35: 968.00
A36: 330200501 | B36: 米非司酮 | C36: 盒 | D36: 7 | E36: 68.50 | F36: 479.50 | G36: 479.50
A37: 330100012 | B37: 治疗费 | C37: 天 | D37: 7 | E37: 108.00 | F37: 756.00 | G37: 756.00
A38: 330100003 | B38: 缩宫素 | C38: 支 | D38: 5 | E38: 10.60 | F38: 53.00 | G38: 53.00
A39: 330100003*3 | B39: 替硝唑 | C39: 瓶 | D39: 10 | E39: 29.50 | F39: 295.00 | G39: 295.00
A40: 330100010 | B40: 左氧 | C40: 瓶 | D40: 5 | E40: 22.60 | F40: 113.00 | G40: 113.00
A41: 330100015*2 | B41: 术后保宫治疗 | C41: 次 | D41: 6 | E41: 206.00 | F41: 1236.00 | G41: 1236.00
A42: 331400015 | B42: 新生化颗粒 | C42: 盒 | D42: 13 | E42: 46.90 | F42: 609.70 | G42: 609.70
A43: 120300001*1 | B43: 头孢拉啶胶囊 | C43: 盒 | D43: 8 | E43: 44.13 | F43: 353.04 | G43: 353.04
A44: 250302001-2 | B44: 当归红枣颗粒 | C44: 盒 | D44: 8 | E44: 62.50 | F44: 500.00 | G44: 500.00
A45: 250307002-2 | B45: 屈螺酮炔雌醇片 | C45: 盒 | D45: 7 | E45: 76.90 | F45: 538.30 | G45: 538.30
A46: 45900041 | B46: 维生素C注射液 | C46: 瓶 | D46: 10 | E46: 46.50 | F46: 465.00 | G46: 465.00
A47: 47400021 | B47: 盐酸吗啡注射液 | C47: 瓶 | D47: 6 | E47: 32.50 | F47: 195.00 | G47: 195.00
A48: 44200013 | B48: 聚维酮溶液 (1%)(50ml) | C48: 瓶 | D48: 15 | E48: 26.00 | F48: 390.00 | G48: 390.00
A49: 44700061 | B49: 氯化钠注射液:0.9%(10ml:90mg) | C49: 瓶 | D49: 10 | E49: 8.60 | F49: 86.00 | G49: 86.00
A50: 44700064 | B50: 氯化钠注射液:0.9%(250ml:2.25mg) | C50: 瓶 | D50: 10 | E50: 5.04 | F50: 50.40 | G50: 50.40
A51: 120300001-1 | B51: 术后B超复查 | C51: 次 | D51: 2 | E51: 88.00 | F51: 176.00 | G51: 176.00
A52: 合计 | F52: =SUM(F5:F51) -> 15180.00 | G52: =SUM(G5:G51) -> 15180.00

Sheet Sheet3
A1: 保定市骨科医院病人费用清单
A2: 姓名：马亚楠 年龄：38岁 病人号：00093816 科别：妇产科 打印日期：2024-10-11 16:28
A3: 项目代码 | B3: 项目名称 | C3: 规格 | D3: 数量 | E3: 单价（元） | F3: 应收金额（元） | G3: 实收（元） | I3: 住院费 | J3: =#REF! -> 
A4: 250203020-2 | B4: 血常规 | C4: 次 | D4: 1 | E4: 23.00 | F4: =D4*E4 -> 23.00 | G4: =F4 -> 23.00 | I4: 化验费 | J4: =G4+#REF!+G5+G6+G7+#REF!+G8+#REF!+#REF!+#REF! -> 
A5: 250301001-2 | B5: 白带常规 | C5: 次 | D5: 1 | E5: 36.00 | F5: 36.00 | G5: =F5 -> 36.00 | I5: 材料费 | J5: =#REF!+#REF!+#REF!+#REF!+#REF!+G14 -> 
A6: 250301002-2 | B6: BV | C6: 次 | D6: 1 | E6: 45.00 | F6: 45.00 | G6: 45.00 | I6: 药费 | J6: =G15+G16+G17+G18+G19+G20+G21+G22+G23+G24+G25+G26+G27 -> 652.8
A7: 250302001-2 | B7: 尿常规 | C7: 次 | D7: 1 | E7: 36.00 | F7: 36.00 | G7: 36.00 | I7: 治疗费 | J7: =G12+#REF!+#REF!+#REF!+#REF!+#REF!+1178.4 -> 
A8: 250203020-2 | B8: 血浆凝血酶原时间测定 | C8: 次 | D8: 1 | E8: 66.00 | F8: 66.00 | G8: 66.00 | J8: =SUM(J3:J7) -> 
A9: 250307005 | B9: B超 | C9: 次 | D9: 2 | E9: 110.00 | F9: 220.00 | G9: 220.00
A10: 47400021 | B10: 心电图 | C10: 次 | D10: 1 | E10: 38.00 | F10: 38.00 | G10: 38.00
A11: 44200013 | B11: 妇科检查 | C11: 次 | D11: 1 | E11: 62.00 | F11: 62.00 | G11: 62.00
A12: 44800021 | B12: 诊查费 | C12: 次 | D12: 1 | E12: 15.00 | F12: 15.00 | G12: 15.00
A13: 250310033-2 | B13: 可视无痛人流手术费 | C13: 次 | D13: 1 | E13: 880.00 | F13: 880.00 | G13: 880.00
A14: 450000008 | B14: 手术室材料费 | C14: 项 | D14: 1 | E14: 163.41 | F14: 163.41 | G14: 163.41
A15: 330200501 | B15: 米非司酮 | C15: 盒 | D15: 1 | E15: 43.20 | F15: 43.20 | G15: 43.20
A16: 330100003 | B16: 缩宫素 | C16: 支 | D16: 3 | E16: 10.60 | F16: 31.80 | G16: 31.80
A17: 330100003*3 | B17: 替硝唑 | C17: 瓶 | D17: 2 | E17: 29.50 | F17: 59.00 | G17: 59.00
A18: 330100010 | B18: 左氧 | C18: 瓶 | D18: 1 | E18: 22.60 | F18: 22.60 | G18: 22.60
A19: 331400015 | B19: 新生化颗粒 | C19: 盒 | D19: 3 | E19: 29.50 | F19: =D19*E19 -> 88.50 | G19: 88.50
A20: 120300001*1 | B20: 头孢拉啶胶囊 | C20: 盒 | D20: 2 | E20: 36.20 | F20: 72.40 | G20: 72.40
A21: 250302001-2 | B21: 当归红枣颗粒 | C21: 盒 | D21: 3 | E21: 49.60 | F21: 148.80 | G21: 148.80
A22: 250307002-2 | B22: 屈螺酮炔雌醇片 | C22: 盒 | D22: 1 | E22: 42.10 | F22: 42.10 | G22: 42.10
A23: 45900041 | B23: 维生素C注射液 | C23: 瓶 | D23: 2 | E23: 12.50 | F23: 25.00 | G23: 25.00
A24: 47400021 | B24: 盐酸吗啡注射液 | C24: 瓶 | D24: 2 | E24: 20.10 | F24: 40.20 | G24: 40.20
A25: 44200013 | B25: 聚维酮溶液 (1%)(50ml) | C25: 瓶 | D25: 1 | E25: 26.00 | F25: 26.00 | G25: 26.00
A26: 44700061 | B26: 氯化钠注射液:0.9%(10ml:90mg) | C26: 瓶 | D26: 5 | E26: 8.60 | F26: 43.00 | G26: 43.00
A27: 44700064 | B27: 氯化钠注射液:0.9%(250ml:2.25mg) | C27: 瓶 | D27: 2 | E27: 5.10 | F27: 10.20 | G27: 10.20
A28: 合计 | F28: =SUM(F4:F27) -> 2237.21 | G28: 2237.21
